{"text_format":"1","workbook":"xlsx","n_sheets":3,"sheets":["Berechnung mit Urlaub","Anteilmässige Ausrichtung","Berechnung mit Barwert"],"not_rendered":{"charts":0,"images":1,"macros":1,"external_links":0,"defined_names":3,"comments":0,"pivot_tables":0},"unopened":[],"bounds":{"document_bytes":16777216,"sheet_cells":100000,"rows_first":2000,"rows_last":500,"rows_between":2000,"halvings":0,"cell_chars":16384,"cell_head_chars":4096},"cells_cut":0,"cells_raw":0,"read":"whole","date_system":"1900"}

{"sheet":"Berechnung mit Urlaub","index":0,"n_rows":22,"n_cols":4,"rows_kept":22,"cut":false,"hidden":false,"merged":[]}
["Umwandlung Treueprämie in Urlaub: Berechnung"]
["Name"]
[]
["Vorname"]
[]
["Pers.Nr."]
[]
["Dep./Amt"]
[]
["Dienstjubiläum",null,"(10, 15 oder 25 Dienstjahre)","nur Zahl eingeben"]
[]
["Anspruch Treueprämie",{"$f":"IF($B$10=25,1,IF($B$10=10,0.5,IF($B$10=15,0.5,0)))","v":0},"Monatslohn"]
[]
["Basisanspruch",{"$f":"IF($B$10=10,10,IF($B$10=15,10,IF($B$10=25,20,0)))","v":0},"Arbeitstage","(berechnetes Feld)"]
[]
["ø BG% der letzten 5 Jahre",null,"Prozent"]
[]
["BG% aktuell",null,"Prozent"]
[]
["Anspruch effektiv "]
["(gemäss aktuellem",{"$f":"B14*$B$16/$B$18","v":{"$error":"#DIV/0!"}},"Arbeitstage","(berechnetes Feld)"]
["BG%)"]

{"sheet":"Anteilmässige Ausrichtung","index":1,"n_rows":25,"n_cols":19,"rows_kept":25,"cut":false,"hidden":false,"merged":[]}
["Umwandlung Treueprämie in Urlaub: Berechnung bei anteilmässiger Ausrichtung"]
["gemäss Art. 114 Abs. 3 der Personalverordnung"]
["Name"]
[]
["Vorname"]
[]
["Pers.Nr."]
[]
["Dep./Amt"]
[]
["nächstes Dienstjubiläum",null,"(15 oder 25 Dienstjahre)","nur Zahl eingeben"]
[null,null,null,null,null,"Hilfstabelle Umrechnung Monate in Jahre (dezimal):"]
["Anspruch Treueprämie",{"$f":"IF($B$11=25,1,IF($B$11=15,0.5,0))","v":0},"Monatslohn",null,null,"1 Monat =",{"$f":"1/12","v":8.3333333333333329E-2},"Jahre"]
[null,null,null,null,null,"2 Monate = ",{"$f":"2/12","v":0.16666666666666666},"Jahre"]
["Basisanspruch",{"$f":"IF($B$11=15,10,IF($B$11=25,20,0))","v":0},"Arbeitstage","(berechnetes Feld)",null,"3 Monate =",{"$f":"3/12","v":0.25},"Jahre"]
[null,null,null,null,null,"4 Monate =",{"$f":"4/12","v":0.33333333333333331},"Jahre"]
["Dienstjahre bei Austritt",null,null,"nur Zahl eingeben, z.B. 12.58",null,"5 Monate = ",{"$f":"5/12","v":0.41666666666666669},"Jahre"]
[null,null,null,null,null,"6 Monate = ",{"$f":"6/12","v":0.5},"Jahre",null,null,null,null,null,null,null,null,null,null,"Berechnung Anteil TP:"]
["ø BG% der letzten 5 Jahre",null,"Prozent",null,null,"7 Monate = ",{"$f":"7/12","v":0.58333333333333337},"Jahre",null,null,null,null,null,null,null,null,null,null,{"$f":"IF(B11=15,B17-10,B17-15)","v":-15}]
[null,null,null,null,null,"8 Monate = ",{"$f":"8/12","v":0.66666666666666663},"Jahre",null,null,null,null,null,null,null,null,null,null,{"$f":"IF(B11=15,B11-10,B11-15)","v":-15}]
["BG% aktuell",null,"Prozent",null,null,"9 Monate = ",{"$f":"9/12","v":0.75},"Jahre",null,null,null,null,null,null,null,null,null,null,{"$f":"S19/S20","v":1}]
[null,null,null,null,null,"10 Monate = ",{"$f":"10/12","v":0.83333333333333337},"Jahre"]
["Anspruch effektiv",{"$f":"B15*$B$19/$B$21*$S$21","v":{"$error":"#DIV/0!"}},"Arbeitstage","(berechnetes Feld)",null,"11 Monate = ",{"$f":"11/12","v":0.91666666666666663},"Jahre"]
["(gemäss aktuellem"]
["BG%)"]

{"sheet":"Berechnung mit Barwert","index":2,"n_rows":29,"n_cols":4,"rows_kept":29,"cut":false,"hidden":false,"merged":[]}
["Umwandlung Treueprämie in Urlaub: Berechnung Barwert eines Urlaubstages"]
["Name"]
[]
["Vorname"]
[]
["Pers.Nr."]
[]
["Dep./Amt"]
[]
["Dienstjubiläum",null,"(10, 15 oder 25 Dienstjahre)","nur Zahl eingeben"]
[]
["Anspruch Treueprämie",{"$f":"IF($B$10=25,1,IF($B$10=10,0.5,IF($B$10=15,0.5,0)))","v":0},"Monatslohn"]
[]
["Basisanspruch Urlaub",{"$f":"IF($B$10=10,10,IF($B$10=15,10,IF($B$10=25,20,0)))","v":0},"Arbeitstage","(berechnetes Feld)"]
[]
["ø BG% der letzten 5 Jahre",null,"Prozent"]
[]
["BG% aktuell",null,"Prozent"]
[]
["Anspruch effektiv ",{"$f":"B14*$B$16/$B$18","v":{"$error":"#DIV/0!"}},"Arbeitstage","(berechnetes Feld)"]
["(gemäss aktuellem"]
["BG%)"]
[]
["Aktuelle Besoldung bei"]
["Beschäftigungsgrad 100%",null,"CHF / Jahr","(ohne 13. ML, Inkonvenienzen, Sozial-, Funktions- und Marktzulagen)"]
[]
["Barwert der Treueprämie",{"$f":"MROUND(B25/12*B12*B16%,0.05)","v":0},"CHF","(berechnetes Feld)"]
[]
["Barwert eines Urlaubstages",{"$f":"MROUND($B$27/$B$20,0.05)","v":{"$error":"#DIV/0!"}},"CHF","(berechnetes Feld)"]